bitfinex/quotes_BTCUSD_20250428
["timestamp","ask_amount","ask_price","bid_price","bid_amount"]
[1745810258033,0.000424,93853.0,93852.0,0.6152193]
[1745810258745,0.000424,93853.0,93852.0,0.6142193]
[1745810259161,0.000424,93853.0,93852.0,0.6152193]
[1745810259332,0.000424,93853.0,93852.0,0.6162193]
[1745810259543,0.000424,93853.0,93852.0,0.6152193]
[1745810259772,0.000424,93853.0,93852.0,0.6172193]
[1745810260324,0.000424,93853.0,93852.0,0.6647193]
[1745810261400,0.000424,93853.0,93852.0,0.6637193]
[1745810261608,0.000424,93853.0,93852.0,0.6647193]
[1745810262052,0.000424,93853.0,93852.0,0.6687193]
[1745810264312,0.000424,93853.0,93852.0,1.0784709]
[1745810266943,0.000424,93853.0,93852.0,0.9823709]
[1745810267659,0.000424,93853.0,93852.0,0.62783005]
[1745810268334,0.000424,93853.0,93852.0,0.5518109]
[1745810268533,0.000424,93853.0,93852.0,0.6423709]
[1745810269231,0.000424,93853.0,93852.0,0.6363709]
[1745810269403,0.000424,93853.0,93852.0,0.6403709]
[1745810269606,0.000424,93853.0,93852.0,0.6393709]
[1745810270009,0.000424,93853.0,93852.0,0.2316193]
[1745810270625,0.000424,93853.0,93852.0,0.2781193]
[1745810270979,0.000424,93853.0,93852.0,0.2751193]
[1745810271132,0.000424,93853.0,93852.0,0.2781193]
[1745810281114,0.000424,93853.0,93852.0,0.2316193]
[1745810281526,0.000424,93853.0,93852.0,0.2315793]
[1745810289236,0.000424,93853.0,93852.0,0.28176021]
[1745810291146,0.000424,93853.0,93852.0,0.19124021]
[1745810291371,0.000424,93853.0,93852.0,0.28076021]
[1745810294202,0.000424,93853.0,93852.0,0.2305793]
[1745810295662,0.000424,93853.0,93852.0,0.2255793]
[1745810296064,0.000424,93853.0,93852.0,0.2275793]
[1745810296678,0.01091135,93853.0,93852.0,0.2275793]
[1745810296874,0.01091135,93853.0,93852.0,0.2255793]
[1745810297082,0.01091135,93853.0,93852.0,0.2285793]
[1745810297697,0.01091135,93853.0,93852.0,0.2295793]
[1745810298083,0.000424,93853.0,93852.0,0.2295793]
[1745810313565,0.000424,93853.0,93852.0,0.2255793]
[1745810313790,0.000424,93853.0,93852.0,0.2295793]
[1745810314024,0.000424,93853.0,93852.0,0.2315793]
[1745810321009,0.000424,93853.0,93852.0,0.2275793]
[1745810321246,0.000424,93853.0,93852.0,0.1390593]
[1745810321441,0.000424,93853.0,93852.0,0.23367004]
[1745810321614,0.000424,93853.0,93852.0,0.2325393]
[1745810321957,0.000424,93853.0,93852.0,0.21799845]
[1745810321958,0.046224,93853.0,93852.0,0.21799845]
[1745810322159,0.046224,93853.0,93852.0,0.2325393]
[1745810322431,0.000424,93853.0,93852.0,0.2325393]
[1745810322907,0.000424,93853.0,93852.0,1.0290909]
[1745810323079,0.00255912,93867.0,93859.0,0.01454085]
[1745810323284,0.00255912,93867.0,93857.0,0.24818636]
[1745810323285,0.00255912,93867.0,93866.0,0.50723099]
[1745810323644,0.00255912,93867.0,93866.0,0.52996911]
[1745810323846,0.00255912,93867.0,93866.0,0.62044911]
[1745810324655,0.00255912,93867.0,93866.0,0.66974911]
[1745810324859,0.00255912,93867.0,93866.0,0.67074911]
[1745810325664,0.00268085,93867.0,93866.0,0.67074911]
[1745810326092,0.00268085,93867.0,93866.0,0.66774911]
[1745810326453,0.00268085,93867.0,93866.0,0.67474911]
[1745810326859,0.00268085,93867.0,93866.0,0.68074911]
[1745810328606,0.00268085,93867.0,93866.0,0.68872106]
[1745810328964,0.00268085,93867.0,93866.0,1.09847266]
[1745810329168,0.00268085,93867.0,93866.0,0.98137154]
[1745810329888,0.00268085,93867.0,93866.0,0.98791239]
[1745810330114,0.00268085,93867.0,93866.0,0.98191239]
[1745810330310,0.00268085,93867.0,93866.0,0.98791239]
[1745810330536,0.00268085,93867.0,93866.0,0.99191239]
[1745810330997,0.00268085,93867.0,93866.0,1.04210647]
[1745810334083,0.00268085,93867.0,93866.0,1.08710647]
[1745810334657,0.00268085,93867.0,93866.0,0.99662647]
[1745810334775,0.00268085,93867.0,93866.0,1.08710647]
[1745810334969,0.00268085,93867.0,93866.0,1.08110647]
[1745810335400,0.00268085,93867.0,93866.0,1.08810647]
[1745810335802,0.00268085,93867.0,93866.0,1.07710647]
[1745810336002,0.00268085,93867.0,93866.0,1.08210647]
[1745810336365,0.00268085,93867.0,93866.0,1.09010647]
[1745810336695,0.00268085,93867.0,93866.0,1.09510647]
[1745810337727,0.00268085,93867.0,93866.0,1.04491239]
[1745810340240,0.00268085,93867.0,93866.0,0.95443239]
[1745810340583,0.00268085,93867.0,93866.0,1.09506647]
[1745810346016,0.00268085,93867.0,93866.0,1.04487239]
[1745810351174,0.00268085,93867.0,93866.0,0.95443239]
[1745810351419,0.00268085,93867.0,93866.0,1.04487239]
[1745810361002,0.00268085,93867.0,93866.0,0.99987239]
[1745810361444,0.00268085,93867.0,93866.0,0.90943239]
[1745810361644,0.00268085,93867.0,93866.0,0.99987239]
[1745810361858,0.004,93869.0,93867.0,0.35454085]
[1745810362000,0.004,93869.0,93868.0,0.46356118]
[1745810362206,0.004,93869.0,93868.0,0.47300444]
[1745810363307,0.004,93869.0,93868.0,0.47800444]
[1745810363937,0.004,93869.0,93868.0,0.88775604]
[1745810365223,0.004,93869.0,93868.0,0.89475604]
[1745810372165,0.0004238,93880.0,93868.0,0.89475604]
[1745810372166,0.0004238,93880.0,93869.0,0.35454085]
[1745810372374,0.0004238,93880.0,93879.0,0.77267048]
[1745810372593,0.0004238,93880.0,93879.0,1.19384906]
[1745810372804,0.0004238,93880.0,93879.0,1.24384836]
[1745810373231,0.0004238,93880.0,93879.0,1.33424836]
[1745810373465,0.0004238,93880.0,93879.0,1.02980817]
[1745810373651,0.0004238,93880.0,93879.0,1.12020817]
[1745810373863,0.0004238,93880.0,93879.0,1.03010887]
[1745810374476,0.0004238,93880.0,93879.0,0.93970887]
[1745810374685,0.0004238,93880.0,93879.0,0.99390887]
[1745810375174,0.0004238,93880.0,93879.0,0.69823342]
[1745810375641,0.0004238,93880.0,93879.0,1.05723342]
[1745810375846,0.0004238,93880.0,93879.0,1.04923342]
[1745810376265,0.0004238,93880.0,93879.0,0.71523342]
[1745810376700,0.0004238,93880.0,93879.0,1.04423342]
[1745810376867,0.0004238,93880.0,93879.0,1.05423342]
[1745810377082,0.0004238,93880.0,93879.0,0.98690887]
[1745810389164,0.0004243,93887.0,93880.0,0.35454085]
[1745810389406,0.0004243,93887.0,93886.0,0.46143099]
[1745810389845,0.0004243,93887.0,93886.0,0.47264611]
[1745810390936,0.0004243,93887.0,93886.0,0.47864611]
[1745810391746,0.0004243,93887.0,93886.0,0.48264611]
[1745810395067,0.0004243,93887.0,93886.0,0.47864611]
[1745810395276,0.0004243,93887.0,93886.0,0.48464611]
[1745810395876,0.0004243,93887.0,93886.0,0.47864611]
[1745810396331,0.0004243,93887.0,93886.0,0.88839771]
[1745810396469,0.0004243,93887.0,93886.0,0.89539771]
[1745810396885,0.0004243,93887.0,93886.0,0.90339771]
[1745810397314,0.0004243,93887.0,93886.0,0.89539771]
[1745810397630,0.0004243,93887.0,93886.0,0.90539771]
[1745810401602,0.0004243,93887.0,93886.0,0.99575771]
[1745810403577,0.0004243,93887.0,93886.0,1.06108226]
[1745810405159,0.0004243,93905.0,93887.0,0.35454085]
[1745810405365,0.00088144,93905.0,93904.0,0.12143099]
[1745810405843,0.00088144,93905.0,93904.0,0.13251901]
[1745810407806,0.00088144,93905.0,93904.0,0.13651901]
[1745810408205,0.01037684,93908.0,93905.0,0.01454085]
[1745810408414,0.01049845,93908.0,93907.0,0.12143099]
[1745810408656,0.01049845,93908.0,93907.0,0.1292534]
[1745810408808,0.01049845,93908.0,93907.0,0.14034126]
[1745810409806,0.01049845,93908.0,93907.0,0.14534126]
[1745810411047,0.01049845,93908.0,93907.0,0.14834126]
[1745810421589,0.01049845,93908.0,93907.0,0.19830453]
[1745810423168,0.01049845,93908.0,93907.0,0.53830453]
[1745810423412,0.01049845,93908.0,93907.0,0.94805613]
[1745810423805,0.01049845,93908.0,93907.0,0.89809286]
[1745810424005,0.01049845,93908.0,93907.0,0.98845286]
[1745810424156,0.01049845,93908.0,93907.0,1.00827417]
[1745810424362,0.01049845,93908.0,93907.0,1.00527417]
[1745810424677,0.01049845,93908.0,93907.0,1.00827417]
[1745810424883,0.01049845,93908.0,93907.0,1.00327417]
[1745810425303,0.01049845,93908.0,93907.0,1.00827417]
[1745810427583,0.0079637,93909.0,93908.0,0.35454085]
[1745810427818,0.0079637,93909.0,93908.0,0.46143099]
[1745810428064,0.0079637,93909.0,93908.0,0.49220991]
[1745810428252,0.0079637,93909.0,93908.0,0.58256991]
[1745810428405,0.0079637,93909.0,93908.0,0.99232151]
[1745810428631,0.0079637,93909.0,93908.0,0.9755002]
[1745810428839,0.0079637,93909.0,93908.0,0.9805002]
[1745810430048,0.0574637,93909.0,93908.0,0.9805002]
[1745810431211,0.0574637,93909.0,93908.0,0.98557287]
[1745810432314,0.0574637,93909.0,93908.0,0.13092042]
[1745810432536,0.1046637,93909.0,93908.0,0.22128042]
[1745810432739,0.1046637,93909.0,93908.0,0.23582127]
[1745810433543,0.1046637,93909.0,93908.0,0.23282127]
[1745810433874,0.1046637,93909.0,93908.0,0.22982127]
[1745810434096,0.1046637,93909.0,93908.0,0.23382127]
[1745810434303,0.0574637,93909.0,93908.0,0.23382127]
[1745810435731,0.0574637,93909.0,93908.0,0.2536351]
[1745810439128,0.0574637,93909.0,93908.0,0.1632751]
[1745810439337,0.0574637,93909.0,93908.0,0.2536351]
[1745810439759,0.0574637,93909.0,93908.0,0.23382127]
[1745810440561,0.0574637,93909.0,93908.0,0.25363428]
[1745810443759,0.1083637,93909.0,93908.0,0.16327428]
[1745810443957,0.1083637,93909.0,93908.0,0.23909343]
[1745810444177,0.1083637,93909.0,93908.0,0.25363428]
[1745810444378,0.1083637,93909.0,93908.0,0.23382127]
[1745810444516,0.0584637,93909.0,93908.0,0.22782127]
[1745810444918,0.0584637,93909.0,93908.0,0.23382127]
[1745810445132,0.0089637,93909.0,93908.0,0.23382127]
[1745810445328,0.0089637,93909.0,93908.0,0.23082127]
[1745810446647,0.0089637,93909.0,93908.0,0.22782127]
[1745810446843,0.0089637,93909.0,93908.0,0.23282127]
[1745810447050,0.0089637,93909.0,93908.0,0.23582127]
[1745810447448,0.0089637,93909.0,93908.0,0.23082127]
[1745810447660,0.0089637,93909.0,93908.0,0.21082127]
[1745810447865,0.0089637,93909.0,93908.0,0.21582127]
[1745810449853,0.0089637,93909.0,93908.0,0.55582127]
[1745810451175,0.0089637,93909.0,93908.0,0.46546127]
[1745810451381,0.0089637,93909.0,93908.0,0.55582127]
[1745810456017,0.0089637,93909.0,93908.0,0.45092042]
[1745810456235,0.0089637,93909.0,93908.0,0.54128042]
[1745810456436,0.0089637,93909.0,93908.0,0.20128042]
[1745810457202,0.0089637,93909.0,93908.0,0.21582127]
[1745810461947,0.0089637,93909.0,93908.0,0.12546127]
[1745810462402,0.0089637,93909.0,93908.0,0.21578127]
[1745810465702,0.0559637,93909.0,93908.0,0.21582127]
[1745810465907,0.1052637,93909.0,93908.0,0.19650995]
[1745810466105,0.1052637,93909.0,93908.0,0.2110508]
[1745810466740,0.1052637,93909.0,93908.0,0.1156908]
[1745810466939,0.1052637,93909.0,93908.0,0.10114995]
[1745810467348,0.1052637,93909.0,93908.0,0.10314995]
[1745810467552,0.11601574,93909.0,93908.0,0.01625981]
[1745810467765,0.11601574,93909.0,93908.0,0.01125981]
[1745810468129,0.11601574,93909.0,93908.0,0.01325981]
[1745810469922,0.11601574,93909.0,93908.0,0.01125981]
[1745810470118,0.11601574,93909.0,93908.0,0.01225981]
[1745810470550,0.11601574,93909.0,93908.0,0.01125981]
[1745810476063,0.14761731,93909.0,93908.0,0.01125981]
[1745810476291,0.2,93903.0,93902.0,0.09036]
[1745810476479,0.0954,93891.0,93888.0,0.14034736]
[1745810476700,0.0485,93890.0,93889.0,0.01138142]
[1745810477168,0.12494,93890.0,93889.0,0.01138142]
[1745810477583,0.2,93893.0,93887.0,0.04998736]
[1745810477729,0.0485,93891.0,93887.0,0.04998736]
[1745810478913,0.0494,93889.0,93888.0,0.01155975]
[1745810479165,0.0986,93889.0,93888.0,0.01155975]
[1745810480831,0.2953,93874.0,93873.0,0.09036]
[1745810481035,0.2953,93874.0,93873.0,0.0079998]
[1745810481259,0.2953,93874.0,93873.0,0.01156132]
[1745810481530,0.30576757,93874.0,93861.0,0.01454085]
[1745810481737,0.30576757,93874.0,93871.0,0.10689014]
[1745810481961,0.30576757,93874.0,93872.0,0.01156143]
[1745810482270,0.30587441,93874.0,93873.0,0.003]
[1745810482391,0.30587441,93874.0,93873.0,0.004]
[1745810482591,0.30587441,93874.0,93873.0,0.01256132]
[1745810483872,0.30587441,93874.0,93873.0,0.01556132]
[1745810484008,0.25727441,93874.0,93873.0,0.01456132]
[1745810484870,0.25727441,93874.0,93873.0,0.01556132]
[1745810485207,0.25727441,93874.0,93873.0,0.02362111]
[1745810494337,0.01057441,93874.0,93873.0,0.1450521]
[1745810494557,0.00010684,93874.0,93873.0,0.1450521]
[1745810494936,0.00010684,93874.0,93873.0,0.1938521]
[1745810495807,0.00010684,93874.0,93873.0,0.1908521]
[1745810496164,0.00010684,93874.0,93873.0,0.99553406]
[1745810496380,0.00010684,93874.0,93873.0,0.9934037]
[1745810496791,0.00010684,93874.0,93873.0,0.9924037]
[1745810496987,0.00010684,93874.0,93873.0,0.9954037]
[1745810497266,0.00010684,93874.0,93873.0,0.9924037]
[1745810497765,0.00010684,93874.0,93873.0,0.9934037]
[1745810497993,0.00010684,93874.0,93873.0,0.9984037]
[1745810498196,0.00010684,93874.0,93873.0,0.9506037]
[1745810498401,0.00010684,93874.0,93873.0,1.0359637]
[1745810498799,0.00010684,93874.0,93873.0,1.0439637]
[1745810499167,0.00010684,93874.0,93873.0,1.0359637]
[1745810499518,0.00010684,93874.0,93873.0,1.0429637]
[1745810500294,0.00010684,93874.0,93873.0,1.0379637]
[1745810500711,0.00010684,93874.0,93873.0,1.0429637]
[1745810509413,0.00010684,93874.0,93873.0,0.9526037]
[1745810509621,0.00010684,93874.0,93873.0,1.0429637]
[1745810513771,0.00010684,93874.0,93873.0,1.09295106]
[1745810516744,0.00010684,93874.0,93873.0,1.0429637]
[1745810518446,0.00010684,93874.0,93873.0,1.0359637]
[1745810518653,0.00010684,93874.0,93873.0,1.0439637]
[1745810519538,0.00010684,93874.0,93873.0,1.0389637]
[1745810519730,0.00010684,93874.0,93873.0,1.0449637]
[1745810520487,0.00010684,93874.0,93873.0,1.0309637]
[1745810520688,0.00010684,93874.0,93873.0,1.0399637]
[1745810520881,0.00010684,93874.0,93873.0,1.0459637]
[1745810524100,0.01043282,93899.0,93874.0,0.01454085]
[1745810524290,0.00010695,93899.0,93886.0,0.01454085]
[1745810524611,0.00010695,93899.0,93885.0,0.10689014]
[1745810524612,0.00010695,93899.0,93888.0,0.01454085]
[1745810524820,0.00010695,93899.0,93890.0,0.01454085]
[1745810525001,0.00010695,93899.0,93891.0,0.10689014]
[1745810525207,0.00010695,93899.0,93891.0,0.11859311]
[1745810525401,0.00010695,93899.0,93893.0,0.01454085]
[1745810525635,0.00010695,93899.0,93895.0,0.01454085]
[1745810525842,0.00010695,93899.0,93897.0,0.01454085]
[1745810525999,0.00010695,93899.0,93898.0,0.12143099]
[1745810526200,0.00010695,93899.0,93898.0,0.13312472]
[1745810526426,0.01056882,93899.0,93898.0,0.13312472]
[1745810527253,0.01056882,93899.0,93898.0,0.13412472]
[1745810527699,0.01056882,93899.0,93898.0,0.13712472]
[1745810528713,0.00010695,93899.0,93898.0,0.13712472]
[1745810530790,0.00010695,93899.0,93898.0,0.14521859]
[1745810536414,0.02008402,93899.0,93898.0,0.14521859]
[1745810537369,0.02008402,93899.0,93898.0,0.15521859]
[1745810537613,0.02008402,93899.0,93898.0,0.14521859]
[1745810538659,0.00010695,93899.0,93898.0,0.14421859]
[1745810538869,0.00010695,93899.0,93898.0,0.14621859]
[1745810539320,0.00010695,93899.0,93898.0,0.14421859]
[1745810539566,0.00010695,93899.0,93898.0,0.14621859]
[1745810542237,0.00010695,93899.0,93898.0,0.14821859]
[1745810545162,0.00010695,93899.0,93898.0,0.14621859]
[1745810545791,0.00010695,93899.0,93898.0,0.14821859]
[1745810545993,0.00010695,93899.0,93898.0,0.14321859]
[1745810546363,0.00010695,93899.0,93898.0,0.14721859]
[1745810548664,0.09490695,93899.0,93898.0,0.0257876]
[1745810549412,0.09490695,93899.0,93898.0,0.0237876]
[1745810549862,0.09490695,93899.0,93898.0,0.0197876]
[1745810550671,0.09490695,93899.0,93898.0,0.0227876]
[1745810551197,0.09490695,93899.0,93898.0,0.0197876]
[1745810551597,0.09490695,93899.0,93898.0,0.0217876]
[1745810552947,0.09590695,93899.0,93898.0,0.0217876]
[1745810553441,0.09590695,93899.0,93898.0,0.01009387]
[1745810565224,0.44549765,93899.0,93898.0,0.002]
[1745810565635,0.43590695,93899.0,93898.0,0.002]
[1745810566411,0.2978,93887.0,93886.0,0.09032]
[1745810566731,0.2978,93887.0,93886.0,0.10241638]
[1745810567086,0.2978,93887.0,93886.0,0.01209638]
[1745810567335,0.2978,93887.0,93883.0,0.04990293]
[1745810567504,0.2978,93887.0,93886.0,0.01209638]
[1745810567713,0.2978,93887.0,93883.0,0.04990293]
[1745810568414,0.2978,93887.0,93886.0,0.004]
[1745810568560,0.2978,93887.0,93886.0,0.003]
[1745810568774,0.2978,93887.0,93883.0,0.05804615]
[1745810569006,0.2978,93887.0,93886.0,0.01209638]
[1745810569183,0.2978,93887.0,93883.0,0.01114322]
[1745810569380,0.2978,93887.0,93886.0,0.01209638]
[1745810569582,0.2978,93887.0,93886.0,0.001]
[1745810570964,0.32758,93887.0,93886.0,0.001]
[1745810571228,0.32758,93887.0,93886.0,0.004]
[1745810571490,0.2978,93887.0,93886.0,0.004]
[1745810571859,0.2,93876.0,93875.0,0.09032]
[1745810572656,0.2106512,93876.0,93875.0,0.09032]
[1745810573086,0.2106512,93876.0,93875.0,0.09232]
[1745810574480,0.2106512,93876.0,93875.0,0.002]
[1745810574802,0.2106512,93876.0,93875.0,0.01416723]
[1745810574982,0.2106512,93876.0,93875.0,0.01003804]
[1745810577200,0.23171632,93876.0,93875.0,0.002]
[1745810577901,0.2106512,93876.0,93875.0,0.002]
[1745810578129,0.2561512,93876.0,93875.0,0.002]
[1745810578334,0.2561512,93876.0,93863.0,0.09032]
[1745810578672,0.2561512,93876.0,93870.0,0.00895638]
[1745810578791,0.2561512,93876.0,93875.0,0.001]
[1745810579222,0.2561512,93876.0,93870.0,0.0008482]
[1745810579652,0.2561512,93876.0,93870.0,0.0018482]
[1745810581106,0.01317618,93875.0,93870.0,0.0018482]
[1745810581357,0.0476,93874.0,93870.0,0.0018482]
[1745810581912,0.0476,93874.0,93870.0,0.0008482]
[1745810582118,0.0476,93874.0,93870.0,0.0018482]
[1745810582643,0.0476,93874.0,93870.0,0.0008482]
[1745810582962,0.0476,93874.0,93870.0,0.01080356]
[1745810587121,0.10277256,93874.0,93870.0,0.0028482]
[1745810587669,0.0476,93874.0,93870.0,0.0028482]
[1745810601740,0.2561512,93876.0,93870.0,0.0028482]
[1745810603127,0.2106512,93876.0,93871.0,0.15299014]
[1745810603328,0.0106512,93876.0,93872.0,0.01454085]
[1745810603510,0.2,93887.0,93874.0,0.01454085]
[1745810603826,0.2,93887.0,93876.0,0.01454085]
[1745810603827,0.21061632,93887.0,93876.0,0.01454085]
[1745810604040,0.21061632,93887.0,93878.0,0.01454085]
[1745810604219,0.21061632,93887.0,93880.0,0.01454085]
[1745810604444,0.21061632,93887.0,93883.0,0.01454085]
[1745810604641,0.01061632,93887.0,93885.0,0.01454085]
[1745810604842,0.32398718,93900.0,93887.0,0.01454085]
[1745810605065,0.32398718,93900.0,93889.0,0.01454085]
[1745810605066,0.2,93900.0,93889.0,0.01454085]
[1745810605276,0.0079637,93909.0,93891.0,0.01454085]
[1745810605467,0.0079637,93909.0,93893.0,0.01454085]
[1745810605670,0.0079637,93909.0,93894.0,0.11906925]
[1745810606079,0.01059601,93907.0,93896.0,0.01454085]
[1745810606283,0.0079637,93909.0,93898.0,0.01454085]
[1745810606479,0.0079637,93909.0,93898.0,0.13360968]
[1745810606706,0.0079637,93909.0,93898.0,0.14160293]
[1745810608298,0.01083716,93907.0,93898.0,0.14660293]
[1745810608497,0.01083716,93907.0,93898.0,0.14860293]
[1745810609996,0.0079637,93909.0,93898.0,0.14860293]
[1745810610833,0.0079637,93909.0,93898.0,0.14360293]
[1745810611070,0.0079637,93909.0,93898.0,0.14160293]
[1745810611270,0.0079637,93909.0,93898.0,0.14960293]
[1745810612209,0.01866727,93909.0,93898.0,0.14960293]
[1745810613490,0.01866727,93909.0,93898.0,0.23988293]
[1745810619100,0.0079637,93909.0,93898.0,0.28778293]
[1745810619738,0.0079637,93909.0,93898.0,0.28278293]
[1745810620143,0.0079637,93909.0,93898.0,0.28778293]
[1745810620799,0.0079637,93909.0,93898.0,0.28278293]
[1745810621004,0.0079637,93909.0,93898.0,0.27978293]
[1745810621293,0.0079637,93909.0,93898.0,0.28378293]
[1745810621739,0.0079637,93909.0,93898.0,0.29078293]
[1745810624431,0.0079637,93909.0,93898.0,0.20050293]
[1745810624632,0.0079637,93909.0,93898.0,0.29074293]
[1745810627168,0.0079637,93909.0,93898.0,0.13906208]
[1745810627317,0.0079637,93909.0,93898.0,0.22930208]
[1745810627513,0.0079637,93909.0,93898.0,0.24384293]
[1745810627718,0.0079637,93909.0,93898.0,0.22930208]
[1745810627923,0.0079637,93909.0,93898.0,0.32440208]
[1745810628130,0.0079637,93909.0,93898.0,0.33894293]
[1745810629011,0.0079637,93909.0,93898.0,0.34768702]
[1745810629425,0.0079637,93909.0,93898.0,0.35968702]
[1745810629578,0.0079637,93909.0,93898.0,0.36956165]
[1745810629915,0.0079637,93909.0,93898.0,0.36256165]
[1745810630445,0.0079637,93909.0,93898.0,0.36956165]
[1745810631036,0.0079637,93909.0,93898.0,0.27932165]
[1745810631174,0.0079637,93909.0,93898.0,0.36956165]
[1745810631372,0.0079637,93909.0,93898.0,0.32206165]
[1745810635373,0.0079637,93909.0,93898.0,0.31506165]
[1745810635743,0.0079637,93909.0,93898.0,0.31806165]
[1745810635942,0.0079637,93909.0,93898.0,0.32306165]
[1745810636979,0.0079637,93909.0,93899.0,0.01454085]
[1745810637198,0.0079637,93909.0,93908.0,0.12143099]
[1745810637372,0.0079637,93909.0,93908.0,0.14117508]
[1745810637573,0.0079637,93909.0,93908.0,0.16080679]
[1745810638606,0.0079637,93909.0,93908.0,0.15093216]
[1745810638868,0.0079637,93909.0,93908.0,0.15393216]
[1745810639780,0.0079637,93909.0,93908.0,0.15893216]
[1745810641687,0.0079637,93909.0,93908.0,0.24917216]
[1745810642437,0.0079637,93909.0,93908.0,0.15893216]
[1745810642570,0.0079637,93909.0,93908.0,0.24917216]
[1745810647193,0.0079637,93909.0,93908.0,0.15893216]
[1745810647451,0.0079637,93909.0,93908.0,0.25061216]
[1745810648435,0.00790607,93909.0,93908.0,0.25061216]
[1745810648850,0.00790607,93909.0,93908.0,0.23086807]
[1745810652250,0.00790607,93909.0,93908.0,0.21586807]
[1745810652484,0.00790607,93909.0,93908.0,0.20086807]
[1745810665841,0.05350607,93909.0,93908.0,0.09464722]
[1745810666239,0.05350607,93909.0,93908.0,0.10918807]
[1745810667159,0.05350607,93909.0,93908.0,0.10618807]
[1745810667697,0.05350607,93909.0,93908.0,0.10118807]
[1745810667892,0.05350607,93909.0,93908.0,0.10518807]
[1745810668542,0.05350607,93909.0,93908.0,0.10118807]
[1745810668767,0.05350607,93909.0,93908.0,0.10318807]
[1745810669640,0.00790607,93909.0,93908.0,0.10318807]
[1745810670651,0.00790607,93909.0,93908.0,0.10118807]
[1745810671062,0.00790607,93909.0,93908.0,0.10618807]
[1745810671334,0.00790607,93909.0,93908.0,0.10418807]
[1745810671988,0.00790607,93909.0,93908.0,0.20086807]
[1745810673879,0.00790607,93909.0,93908.0,0.10918807]
[1745810674079,0.00790607,93909.0,93908.0,0.20086807]
[1745810678244,0.00790607,93909.0,93908.0,1.01130989]
[1745810678446,0.00790607,93909.0,93908.0,1.00918044]
[1745810679683,0.00790607,93909.0,93908.0,1.00718044]
[1745810679884,0.00790607,93909.0,93908.0,1.00218044]
[1745810680007,0.00790607,93909.0,93908.0,1.00718044]
[1745810680204,0.00790607,93909.0,93908.0,1.01318044]
[1745810680660,0.0004243,93912.0,93911.0,0.001]
[1745810680854,0.0004243,93912.0,93911.0,0.51265979]
[1745810681015,0.0004243,93912.0,93911.0,0.5202226]
[1745810681415,0.0004243,93912.0,93911.0,0.6114626]
[1745810681857,0.0004243,93912.0,93911.0,0.6234626]
[1745810682958,0.0004243,93912.0,93911.0,0.6787626]
[1745810683237,0.0004243,93918.0,93917.0,0.21295399]
[1745810683395,0.0004243,93937.0,93934.0,0.36344085]
[1745810683596,0.0004243,93937.0,93934.0,0.97132259]
[1745810683802,0.0004243,93937.0,93934.0,0.98616975]
[1745810684407,0.0004243,93937.0,93934.0,1.03446975]
[1745810684608,0.0004243,93947.0,93939.0,0.22844496]
[1745810684810,0.0004243,93947.0,93946.0,0.06174085]
[1745810685009,0.00047292,93947.0,93946.0,0.16975891]
[1745810685190,0.00047292,93947.0,93946.0,0.1775867]
[1745810685567,0.00047292,93947.0,93946.0,0.1313867]
[1745810685981,0.00047292,93947.0,93946.0,0.2226267]
[1745810686183,0.00047292,93947.0,93946.0,0.11471793]
[1745810686426,0.00047292,93947.0,93946.0,0.20595793]
[1745810686600,0.00047292,93947.0,93946.0,0.11684645]
[1745810686801,0.00047292,93947.0,93946.0,0.2296273]
[1745810687029,0.00047292,93947.0,93946.0,0.22049878]
[1745810687283,0.00047292,93947.0,93946.0,0.56049878]
[1745810687440,0.00047292,93947.0,93946.0,0.56549878]
[1745810688250,0.00229722,93952.0,93947.0,0.35454085]
[1745810688428,0.00229722,93952.0,93951.0,0.12143099]
[1745810688815,0.0004242,93961.0,93952.0,0.01454085]
[1745810689002,0.0004242,93961.0,93954.0,0.01454085]
[1745810689198,0.0004242,93961.0,93953.0,0.10689014]
[1745810689199,0.0004242,93961.0,93956.0,0.01454085]
[1745810689404,0.0004242,93961.0,93957.0,0.10689014]
[1745810689608,0.0004242,93961.0,93957.0,0.11464556]
[1745810690876,0.0004242,93961.0,93957.0,0.11864556]
[1745810691094,0.0004242,93961.0,93958.0,0.01454085]
[1745810691308,0.0494,93960.0,93959.0,0.10689014]
[1745810691518,0.0494,93960.0,93959.0,0.20584808]
[1745810692825,0.0494,93960.0,93959.0,0.20784808]
[1745810693285,0.0494,93960.0,93959.0,0.21184808]
[1745810696255,0.0004242,93961.0,93960.0,0.01454085]
[1745810696464,0.0004242,93961.0,93960.0,0.12143099]
[1745810696676,0.0004242,93961.0,93960.0,0.12912456]
[1745810697453,0.0004242,93961.0,93960.0,0.13112456]
[1745810698356,0.0004242,93961.0,93960.0,0.13512456]
[1745810698703,0.0004242,93961.0,93960.0,0.22632456]
[1745810698899,0.0004242,93961.0,93960.0,0.13512456]
[1745810699263,0.0004242,93961.0,93960.0,0.22632456]
[1745810707610,0.02026543,93961.0,93960.0,0.22632456]
[1745810709706,0.11346543,93961.0,93960.0,0.01369357]
[1745810710088,0.11346543,93961.0,93960.0,0.01102088]
[1745810710727,0.45346543,93961.0,93960.0,0.01102088]
[1745810711055,0.45346543,93961.0,93960.0,0.006]
[1745810711495,0.45346543,93961.0,93960.0,0.002]
[1745810712171,0.34,93960.0,93959.0,0.00812953]
[1745810712375,0.2,93953.0,93952.0,0.09068]
[1745810712589,0.2963,93953.0,93921.0,0.0854815]
[1745810712790,0.2963,93953.0,93952.0,0.00502172]
[1745810712988,0.2963,93953.0,93944.0,0.09068]
[1745810713315,0.2963,93953.0,93944.0,0.20541397]
[1745810713614,0.2963,93953.0,93945.0,0.00502246]
[1745810714042,0.01994453,93952.0,93945.0,0.00502246]
[1745810714526,0.0484,93951.0,93945.0,0.00502246]
[1745810714777,0.41972042,93950.0,93945.0,0.00502246]
[1745810714975,0.0922,93937.0,93935.0,0.09068]
[1745810715312,0.0922,93937.0,93936.0,0.0050234]
[1745810715524,0.0922,93937.0,93935.0,0.09068]
[1745810715720,0.0922,93937.0,93936.0,0.0050234]
[1745810715945,0.0922,93937.0,93935.0,0.09068]
[1745810716163,0.0922,93937.0,93936.0,0.0050234]
[1745810716375,0.0922,93937.0,93935.0,0.10580866]
[1745810716572,0.0922,93937.0,93936.0,0.0050234]
[1745810716732,0.11212016,93937.0,93936.0,0.0050234]
[1745810716937,0.11212016,93937.0,93935.0,0.00504862]
[1745810716938,0.12284869,93937.0,93935.0,0.00504862]
[1745810717317,0.01992016,93936.0,93935.0,0.00504862]
[1745810717451,0.01992016,93936.0,93935.0,4.862e-05]
[1745810717856,0.45532016,93936.0,93935.0,4.862e-05]
[1745810718055,0.4354,93936.0,93935.0,4.862e-05]
[1745810718835,0.2944,93926.0,93916.0,0.04965181]
[1745810719040,0.34,93924.0,93916.0,0.04965181]
[1745810719206,0.098,93922.0,93916.0,0.04965181]
[1745810719821,0.35988058,93921.0,93916.0,0.04965181]
[1745810720363,0.34,93921.0,93916.0,0.04965181]
[1745810720560,0.54,93915.0,93914.0,0.0008482]